Cogmind - Beta 17 @@@ ROGUE MODE // 2026.08.06 @ 21:18:27 Player: LandRaider Result: Destroyed by Autobeam Turret with Autobeam Performance ------------- Evolutions (0) 0 Regions Visited (3) 600 Robots Destroyed (5) 25 Value Destroyed (76) 76 Prototype IDs (0) 0 Alien Tech Used (0) 0 Bonus (0) 0 TOTAL SCORE: 701 Bonus ------- None Cogmind --------- Core Integrity 0/250 Matter 300/300 Energy 90/100 System Corruption 9% Temperature Cool (6) Movement Walking (120) Location -10/Subcaves Parts ------- > --- POWER (1) -------- (None) > --- PROPULSION (2) --- Aluminum Leg > --- UTILITY (2) ------ Subdweller Optics > --- WEAPON (2) ------- Medium Laser > --- INVENTORY (5) ---- Subdweller Power Source Flight Unit Disposable Heat Sink Makeshift System Shield Peak State ------------ > --- POWER ------------ Ion Engine > --- PROPULSION ------- Aluminum Leg Aluminum Leg > --- UTILITY ---------- Subdweller Optics > --- WEAPON ----------- Medium Laser Medium Laser > --- INVENTORY -------- Subdweller Power Source Disposable Heat Sink Makeshift System Shield [Rating: 7] Favorites ----------- Power Ion Engine Engine Ion Engine Propulsion Aluminum Leg Leg Aluminum Leg Wheel Wheel Utility Subdweller Optics Device Subdweller Optics Storage Small Storage Unit Weapon Medium Laser Energy Gun Medium Laser Ballistic Gun Assault Rifle Special Weapon Mining Laser Build | -11 -10 -10 -10 ------- Run | Yrd Mat Min Sub Slots Evolved . | . . . . Power . | . . . . Propulsion . | . . . . Utility . | . . . . Weapon . | . . . . Parts Attached 12 | 6 . 1 5 Power 2 | 1 . . 1 Engine 2 | 1 . . 1 Core . | . . . . Reactor . | . . . . Propulsion 4 | 2 . . 2 Treads . | . . . . Leg 2 | . . . 2 Wheel 2 | 2 . . . Hover . | . . . . Flight . | . . . . Utility 2 | 1 . . 1 Device 1 | . . . 1 Storage 1 | 1 . . . Processor . | . . . . Hackware . | . . . . Protection . | . . . . Artifact . | . . . . Weapon 4 | 2 . 1 1 Energy Gun 2 | 1 . . 1 Energy Cannon . | . . . . Ballistic Gun 1 | 1 . . . Ballistic Cannon . | . . . . Launcher . | . . . . Special Weapon 1 | . . 1 . Impact Weapon . | . . . . Slashing Weapon . | . . . . Piercing Weapon . | . . . . Special Melee Weapon . | . . . . Unidentified Prototypes . | . . . . Parts Lost 9 | . . 5 4 Power 2 | . . 1 1 Propulsion 3 | . . 2 1 Utility 1 | . . 1 . Weapon 3 | . . 1 2 Highest Loss Streak 5 | . . 5 2 To Critical Strikes . | . . . . Average Backups 3 | 1 4 4 2 Power . | . 1 1 . Propulsion . | . 2 2 . Utility . | . . . . Weapon . | . 1 1 . Tool/Special . | . . . . Unused Backups 4 | . . . 4 Power 1 | . . . 1 Propulsion 1 | . . . 1 Utility 2 | . . . 2 Weapon . | . . . . Tool/Special . | . . . . Average Slot Usage (%) 70 | . 85 62 69 Engine 12 | . 14 7 13 Leg 19 | . . . 27 Wheel 6 | . 28 15 . Device 4 | . . . 6 Storage 3 | . 14 12 . Energy Gun 15 | . 14 14 15 Ballistic Gun 6 | . 14 7 4 Peak Build Rating 7 | 6 6 6 7 Average Rating 5 | 4 6 4 5 On Entrance 3 | . 6 6 2 Avg Prop Armor Cover (%) . | . . . . Naked Turns . | . . . . Heaviest Build 12 | 12 12 12 11 Greatest Support 20 | 20 20 20 20 Greatest Overweight (x) 2 | . . 2 . Average Overweight (x) . | . . . . Largest Inventory Capacity 8 | 8 8 8 5 Average Capacity 5 | 7 8 7 5 Most Carried 5 | 4 4 5 4 Average Carried 3 | 1 4 4 2 Final Capacity 8 | 8 8 5 5 Final Carried 4 | 4 4 4 4 Class Distribution -------------------- 100% | Mutant Dominant Class ---------------- Mutant | -10/Materials Mutant | -10/Mines Mutant | -10/Subcaves Resources | -11 -10 -10 -10 ----------- Run | Yrd Mat Min Sub Matter Collected 381 | 242 27 . 112 Remotely . | . . . . Salvage Created 84 | . 27 . 57 Parts 9 | . 2 . 7 Haulers Intercepted . | . . . . Recyclers Shooed . | . . . . Parts Field Recycled . | . . . . Retrieved Matter . | . . . . Parts Self-Destructed 11 | . . . 11 Prevented . | . . . . Parts Restored . | . . . . Kills | -11 -10 -10 -10 ------- Run | Yrd Mat Min Sub Combat Hostiles Destroyed 3 | . . . 3 Guns 3 | . . . 3 Classes Destroyed 3 | . 1 . 2 Turret 1 | . . . 1 Watcher 1 | . 1 . . Swarmer 3 | . . . 3 Best Kill Streak 3 | . 1 . 3 Combat Bots Only 3 | . . . 3 Max Kills in Single Turn 1 | . 1 . 1 Gunslinging . | . . . . Exploded . | . . . . Melee . | . . . . Uniques/NPCs Destroyed . | . . . . Combat | -11 -10 -10 -10 -------- Run | Yrd Mat Min Sub Hostile Shots Fired 100 | . . 14 86 Missed 38 | . . 1 37 Hits 62 | . . 13 49 Projectile 62 | . . 13 49 AOE 1 | . . . 1 Damage Taken 1123 | . . 733 390 Core 255 | . . 187 68 Absorbed by Shields . | . . . . Core Remaining (%) 100 | 100 . . . Volleys Fired 43 | . 5 14 24 Largest 2 | . 2 2 2 Hottest 100 | . 70 100 100 Shots Fired 66 | . 10 21 35 Gun 59 | . 10 14 35 Cannon . | . . . . Launcher . | . . . . Special 7 | . . 7 . Kinetic 13 | . 5 7 1 Thermal 53 | . 5 14 34 Explosive . | . . . . Electromagnetic . | . . . . Robot Hit Streak 5 | . 3 . 5 Robot Miss Streak 3 | . 3 . 3 Penetration Max . | . . . . Secondary Targets . | . . . . Shots Hit Robots 23 | . 5 . 18 Core Hits 10 | . 2 . 8 Critical Kills . | . . . . Critical Parts Destroyed . | . . . . Critical Strikes 1 | . . . 1 Burn 1 | . . . 1 Melee Attacks . | . . . . Impact . | . . . . Slashing . | . . . . Piercing . | . . . . Sneak Attacks . | . . . . Combat Hostiles . | . . . . Follow-up Attacks . | . . . . Damage Inflicted 285 | . 59 . 226 Guns 285 | . 59 . 226 Cannons . | . . . . Explosions . | . . . . Melee . | . . . . Ramming . | . . . . Kinetic 33 | . 33 . . Thermal 252 | . 26 . 226 Explosive . | . . . . Electromagnetic . | . . . . Impact . | . . . . Slashing . | . . . . Piercing . | . . . . Highest Corruption 9 | . . 9 9 Average Corruption 8 | . . 6 9 Corruption Purged . | . . . . Corruption Blocked . | . . . . Effects 19 | . . 1 18 Message Errors 4 | . . 1 3 Matter Fused 6 | . . . 6 Heat Flow Errors 2 | . . . 2 Energy Discharges 2 | . . . 2 Data Loss (minor) 3 | . . . 3 Data Loss (major) 1 | . . . 1 Alerts 1 | . . . 1 Overload Shots . | . . . . Overflow Damage . | . . . . Projectiles . | . . . . Explosions . | . . . . Melee . | . . . . Knockbacks . | . . . . Impact . | . . . . Kinetic . | . . . . Secondary . | . . . . Self-Inflicted Damage . | . . . . Shots . | . . . . Rammed . | . . . . Targets Rammed . | . . . . Kicked . | . . . . Crushed . | . . . . Highest Temperature 206 | . 38 94 206 Average Temperature 40 | . 14 45 51 Received Heat Transfer 324 | . . 108 216 Siege Activations . | . . . . Martial Activations . | . . . . Shielding Activations . | . . . . Robots Disrupted . | . . . . Combat Hostiles . | . . . . Robots Corrupted . | . . . . Combat Hostiles . | . . . . Parts Fried . | . . . . Impact Corruptions . | . . . . Robots Melted . | . . . . Combat Hostiles . | . . . . Parts Melted 1 | . . . 1 Heat Transferred 814 | . 74 . 740 Parts Sabotaged . | . . . . Parts Stolen . | . . . . Parts Stripped . | . . . . Power Chain Reactions . | . . . . Alert | -11 -10 -10 -10 ------- Run | Yrd Mat Min Sub Maximum Alert Level . | . . . . Low Security (%) 100 | 100 100 100 . Level 1 . | . . . . Level 2 . | . . . . Level 3 . | . . . . Level 4 . | . . . . Level 5 . | . . . . High Security . | . . . . Max Security . | . . . . Peak Influence 30 | . 30 30 . Initial 7 | . . 7 . Average 4 | . 8 3 . Influence Increases 207 | . 37 30 140 Destroy 0b10 Robot/C 80 | . . . 80 Destroy 0b10 Robot/NC 5 | . 5 . . Destroy Leader 2 | . 2 . . Select Force Hacks 30 | . 30 . . Lose Combat Pursuer 90 | . . 30 60 Influence Decreases 141 | . 17 20 104 Entered New Map 29 | . . 13 16 Time Decay 82 | . 17 7 58 Lost Part 30 | . . . 30 Squads Dispatched 3 | . 3 . . Investigation 1 | . 1 . . Extermination . | . . . . Reinforcement 2 | . 2 . . Assault . | . . . . Garrison . | . . . . Intercept . | . . . . Searches Triggered . | . . . . Construction Impeded . | . . . . Haulers Reinforced . | . . . . Active Scanning Responses . | . . . . Cargo Convoy Interrupts . | . . . . Stealth | -11 -10 -10 -10 --------- Run | Yrd Mat Min Sub Distress Signals . | . . . . Communications Jammed . | . . . . Distress Signals . | . . . . Times Spotted 15 | . 3 4 8 Peak Tracking Total 3 | . 3 2 3 Tactical Retreats 4 | . . 1 3 Traps | -11 -10 -10 -10 ------- Run | Yrd Mat Min Sub Traps Triggered . | . . . . Indirectly . | . . . . Trap Hack Attempts . | . . . . Triggered . | . . . . Disarmed . | . . . . Reprogrammed . | . . . . Reused . | . . . . Traps Extracted . | . . . . Installed . | . . . . Triggered . | . . . . Machines | -11 -10 -10 -10 ---------- Run | Yrd Mat Min Sub Machines Disabled 2 | . . . 2 Max in Single Turn 1 | . . . 1 Machines Repaired . | . . . . Machines Dismantled . | . . . . Machines Sabotaged . | . . . . Overloaded Fab Kills . | . . . . Hacking | -11 -10 -10 -10 --------- Run | Yrd Mat Min Sub Machines Accessed 2 | . 2 . . Terminals 1 | . 1 . . Fabricators . | . . . . Repair Stations . | . . . . Recycling Units 1 | . 1 . . Scanalyzers . | . . . . Garrison Access . | . . . . Total Hacks 3 | . 3 . . Successful 3 | . 3 . . Failed . | . . . . Catastrophic . | . . . . Database Lockouts . | . . . . Manual 3 | . 3 . . Terminals 2 | . 2 . . Fabricators . | . . . . Repair Stations . | . . . . Recycling Units 1 | . 1 . . Scanalyzers . | . . . . Garrison Access . | . . . . Terminal Hacks . | . . . . Fabricator Hacks . | . . . . Repair Station Hacks . | . . . . Recycling Unit Hacks . | . . . . Scanalyzer . | . . . . Garrison Access Hacks . | . . . . Unauthorized Hacks 3 | . 3 . . Terminals 2 | . 2 . . Track 1 | . 1 . . Botnet 1 | . 1 . . Fabricators . | . . . . Repair Stations . | . . . . Recycling Units 1 | . 1 . . Tunnel 1 | . 1 . . Scanalyzers . | . . . . Garrison Access . | . . . . Data Cores Recovered . | . . . . Used . | . . . . Hacking Detections 1 | . 1 . . Full Trace Events . | . . . . Feedback Events . | . . . . Feedback Blocked . | . . . . Robot Schematics Acquired . | . . . . Robots Built . | . . . . Authchips . | . . . . Time . | . . . . Total Robot Build Rating . | . . . . Part Schematics Acquired . | . . . . Parts Built . | . . . . Authchips . | . . . . Time . | . . . . Total Part Build Rating . | . . . . Part Studies Acquired . | . . . . Parts Repaired . | . . . . Time . | . . . . Parts Recycled . | . . . . Recycled Matter . | . . . . Retrieved Matter . | . . . . Retrieved Components . | . . . . Parts Scanalyzed . | . . . . Part Schematics Acquired . | . . . . Parts Damaged . | . . . . Bothacking | -11 -10 -10 -10 ------------ Run | Yrd Mat Min Sub Used RIF Installer . | . . . . Robots Hacked . | . . . . Non-combat . | . . . . Combat . | . . . . Robot Hacks Applied . | . . . . Relay Couplers Released . | . . . . Fabnet Peak Effective % . | . . . . Robots Rewired . | . . . . Allies Hacked . | . . . . Hacks Repelled . | . . . . Allies | -11 -10 -10 -10 -------- Run | Yrd Mat Min Sub Total Allies 1 | . . 1 . Largest Group 1 | . . 1 . Highest-Rated Group 31 | . . 31 . Highest-Rated Ally 31 | . . 31 . Total Orders . | . . . . Ally Attacks 3 | . . 3 . Total Damage 40 | . . 40 . Kills . | . . . . Allies Corrupted . | . . . . Allies Melted . | . . . . Intel | -11 -10 -10 -10 ------- Run | Yrd Mat Min Sub Active Infowar (turns) 173 | . . . 173 Optics 173 | . . . 173 Robot Analysis Total . | . . . . Derelict Logs Recovered . | . . . . Drone Launches . | . . . . Drone Recoveries . | . . . . Exploration | -11 -10 -10 -10 ------------- Run | Yrd Mat Min Sub Turns Passed 648 | 41 79 85 443 Spaces Moved 454 | 36 72 38 308 Core 8 | 3 . 5 . Treads . | . . . . Legs 308 | . . . 308 Wheels 138 | 33 72 33 . Hover . | . . . . Flight . | . . . . Fastest Speed 50 | 50 80 80 120 Average Speed 107 | 77 80 86 120 Slowest Speed 150 | 80 80 150 120 Overloaded Moves . | . . . . Propulsion Burnouts . | . . . . Robots Hopped . | . . . . Potential Cave-ins 3 | . . 3 . Cave-ins Triggered 4 | . . 4 . Exploration Rate (%) 15 | 4 16 17 24 Regions Visited 3 Branch Regions 2 Pre-discovered Areas 1 | . 1 . . Known Exits Taken . | . . . . Unknown Exits Taken 3 | 1 1 1 . Scrap Searched 1 | . . . 1 Spaces Dug 4 | . . 4 . Terrain Destroyed 5 | . . 5 . Melee . | . . . . Projectile 5 | . . 5 . AOE . | . . . . Terrain Rammed . | . . . . Walls Destroyed . | . . . . Machines Disabled . | . . . . Actions | -11 -10 -10 -10 --------- Run | Yrd Mat Min Sub Total 529 | 45 83 54 347 Wait 13 | . 7 . 6 Move 451 | 35 71 37 308 Hop . | . . . . Pick Up 9 | 4 . 1 4 Fast Attach 7 | 6 . . 1 Attach 5 | . . 1 4 Detach . | . . . . Swap 1 | . . 1 . Drop . | . . . . Fire 43 | . 5 14 24 Melee . | . . . . Ram . | . . . . Kick . | . . . . Crush . | . . . . Escape Stasis . | . . . . Rewire . | . . . . Trap . | . . . . Miscellaneous . | . . . . Route ------- -11/Scrapyard -10/Materials -10/Mines -10/Subcaves (discovered 1 exit: [*Rec]) History --------- Turn | Location | Event 2 | -11/Scrapyard | Met Revision 17 20 | -11/Scrapyard | Discovered new exit (range 16) 42 | -11/Scrapyard | Entered Materials 90 | -10/Materials | Discovered new exit (range 7) 121 | -10/Materials | Entered Mines 138 | -10/Mines | Received a Mining Laser from a helpful Derelict 166 | -10/Mines | Crushed by falling debris 188 | -10/Mines | Crushed by falling debris 191 | -10/Mines | Crushed by falling debris 198 | -10/Mines | Crushed by falling debris 198 | -10/Mines | Core integrity fell below 50% 205 | -10/Mines | Discovered new exit (range 3) 206 | -10/Mines | Entered Subcaves 229 | -10/Subcaves | Lost 5 parts (1p2n1u1w) 247 | -10/Subcaves | Shifting Twisted Machinery released Sub. Power Source 305 | -10/Subcaves | Build established: Mutant 339 | -10/Subcaves | Ambushed by Subdwellers from Twisted Machinery 430 | -10/Subcaves | Shifting Twisted Machinery released Sub. Optics 599 | -10/Subcaves | Core integrity fell below 20% 607 | -10/Subcaves | Discovered new exit (range 12) 649 | -10/Subcaves | Destroyed by Autobeam Turret with Autobeam Last Messages --------------- 00573_ Lgt. Ion Engine fries itself beyond repair. 00574_ Acquired Flight Unit. 00580_ S-10 Pest suffers critical hit (Burn). 00583_ Flight Unit melted. 00583_ S-10 Pest destroyed. 00587_ Subatomizers dissect the Lgt. Assault Rifle. 00588_ BEMGLWFZ1HXSS67ONIKDJ3PIZC3R1AMVAB 00589_ Lgt. Assault Rifle fries itself beyond repair. 00593_ Machine disabled. 00604_ Med. Laser destroyed. 00605_ Autobeam Turret destroyed. 00607_ EXIT=FOUND 00611_ Sub. Optics shoots sparks and powers down. 00616_ System corrupted: Matter fused (-8). 00619_ Autobeam fries itself beyond repair. 00623_ Acquired 8 matter. 00636_ System corrupted: Component data lost. 00637_ Ion Engine destroyed. 00645_ Aluminum Leg destroyed. 00647_ Machine disabled. Map ----- +----------------------------------------------------+ | # ##????????????????????????????????????????????? | | ## ##???????????????????????????????????????????? | | ?## ##??????????????????????????????????????????? | | #? # ###????????????????????????????????????????? | | ?##### #????????????????????????????????????????? | | #???# # #????????????????????????????????????????? | | #???## #????????????????????????????????????????? | | ##??# ##????????????????????????????????????????? | | #### ##?????????????????????????????????????????? | | # ##??????????????????????????????????????????? | | ## # #???????????????????????????????????????????? | | ?## %#???????????????????????????????????????????? | | ??## ##??????????????????????????????????????????? | | ???## ##?????????????????????????????????????????? | | ????## ##????????????????????????????????????????? | | ?????## ##??????????????????????????#????????????? | | ??????# ##???????????????????????? #????????????? | | ??????###"##?????????????????????? #?????????????? | | ????????## ##???????#####???????? ##????????????? | | ?????????## ###????## ######?? ## ????????? | | ??????????## ###??# ## % #????????? | | ???????????###% ##?# % #????????? | | ?????????????###%### #???????? | | ?????????????## # % ???????? | | ?????????????# ## % ##??????????????? | | ????????????# # ##@ ##???????????????? | | ????????????# # # ###????????????????? | | ????????????#?#### % ##?????????????????? | | ?????????????????### % #?????????????????? | | ???????????????????## #?????????????????? | | ????????????????????#% #### ##?????????????????? | | ???????????????????? ??# #??????????????????? | | ??????????????????? #?# ?????????????????? | | ?????????????????? % #?? ????????????????? | | ?????????????????#" t [ "#?? ????????????????? | | ?????????????????# " " #??? ????????????????? | | ?????????????????#"""" "" #??? ???????????????? | | ???????????????????###<#####????? #??????????????? | | ?????????????????????###?????????????????????????? | | ?????????????????????????????????????????????????? | | ?????????????????????????????????????????????????? | | ?????????????????????????????????????????????????? | | ?????????????????????????????????????????????????? | | ?????????????????????????????????????????????????? | | ?????????????????????????????????????????????????? | | ?????????????????????????????????????????????????? | | ?????????????????????????????????????????????????? | | ?????????????????????????????????????????????????? | | ?????????????????????????????????????????????????? | | ?????????????????????????????????????????????????? | +----------------------------------------------------+ Best States ------------- Heat Dissipation 25 Energy Generation 10 Energy Capacity 250 Matter Stores 300 Matter Capacity 300 Sight Range 21 Terrain Scan Density 10 Evasion (%) 55 Item Schematics ----------------- None Robot Schematics ------------------ None Fabricated ------------ Nothing Repaired ---------- Nothing Studied --------- None Alien Tech Used ----------------- None Achievements -------------- None Challenges ------------ None Game ------ Seed SmallScanProcessor Manual? 0 Play Time 00:10:30 Cumulative 38.9 hours Start 2026.08.06 @ 19:40:30 End 2026.08.06 @ 21:18:27 Sessions 1 Manual Loads 0 Difficulty Rogue Special Mode None Game No. 34 Rogue 32 Adventurer 2 Explorer 0 Win Type - Total 0 Types 0/0/0/0/0/0/0/0/0/0 Lore% 26 Gallery% 25 Achievement% 22 Wizard Run 0 Options --------- Layout 0 ASCII 0 Keyboard 0 Movement Mouse Keybinds 0 Fullscreen 2 Font 24/Smallcaps Map View 76x50 Zoom Use 0% Tactical HUD 1 Map Filters NONE Filters NONE Steam 1 RUN: 04cfc01d-bfe4-40be-92e1-6f80676c18f4